[Event "*** Titled Tuesday Blitz"]
[Site "Chess.com"]
[Date "2021.02.16"]
[Round "7"]
[White "Szparu"]
[Black "GM_LOADING"]
[Result "1/2-1/2"]
[WhiteElo "2664"]
[BlackElo "2499"]
[TimeControl "180+1"]
[EndTime "11:19:54 PST"]
[Termination "Game drawn by repetition"]

1. d4 {[%clk 0:02:35.8]} 1... Nf6 {[%clk 0:02:59.2]} 2. Bg5 {[%clk 0:02:35.5]}
2... Ne4 {[%clk 0:02:55.9]} 3. h4 {[%clk 0:02:35.4]} 3... c5 {[%clk 0:02:52.2]}
4. d5 {[%clk 0:02:35.2]} 4... g6 {[%clk 0:02:50.7]} 5. Nd2 {[%clk 0:02:29.6]}
5... Nxg5 {[%clk 0:02:50.2]} 6. hxg5 {[%clk 0:02:30.3]} 6... Bg7 {[%clk
0:02:50.8]} 7. c3 {[%clk 0:02:31]} 7... d6 {[%clk 0:02:50.6]} 8. e4 {[%clk
0:02:21.9]} 8... Nd7 {[%clk 0:02:48.8]} 9. f4 {[%clk 0:02:19]} 9... h6 {[%clk
0:02:42.8]} 10. Ngf3 {[%clk 0:02:17.4]} 10... a6 {[%clk 0:02:38.3]} 11. a4
{[%clk 0:02:17.3]} 11... hxg5 {[%clk 0:02:38.1]} 12. Rxh8+ {[%clk 0:02:17.1]}
12... Bxh8 {[%clk 0:02:39]} 13. Nxg5 {[%clk 0:02:17.7]} 13... Nf6 {[%clk
0:02:37.9]} 14. a5 {[%clk 0:02:13.5]} 14... Nh5 {[%clk 0:02:12.3]} 15. Qf3
{[%clk 0:02:09.9]} 15... Bd7 {[%clk 0:02:11.4]} 16. Nc4 {[%clk 0:01:59.7]} 16...
Qc7 {[%clk 0:02:06]} 17. Nb6 {[%clk 0:01:59.5]} 17... Rd8 {[%clk 0:02:05.7]} 18.
Kf2 {[%clk 0:01:43.2]} 18... c4 {[%clk 0:01:46.2]} 19. Bxc4 {[%clk 0:01:26.2]}
19... Qc5+ {[%clk 0:01:46]} 20. Ke2 {[%clk 0:01:13.4]} 20... Bb5 {[%clk
0:01:42.8]} 21. b3 {[%clk 0:00:50.7]} 21... Bxc4+ {[%clk 0:01:16.5]} 22. bxc4
{[%clk 0:00:51.6]} 22... Bg7 {[%clk 0:01:02.3]} 23. g3 {[%clk 0:00:37.4]} 23...
Nf6 {[%clk 0:01:00.9]} 24. Qe3 {[%clk 0:00:35.3]} 24... Qc7 {[%clk 0:00:52.7]}
25. Rh1 {[%clk 0:00:31.6]} 25... Nd7 {[%clk 0:00:50.5]} 26. Rh7 {[%clk
0:00:28.8]} 26... Kf8 {[%clk 0:00:32.5]} 27. Kd3 {[%clk 0:00:21]} 27... Nf6
{[%clk 0:00:21.2]} 28. Rh1 {[%clk 0:00:16.1]} 28... Nd7 {[%clk 0:00:17.1]} 29.
g4 {[%clk 0:00:12.2]} 29... Nc5+ {[%clk 0:00:14.3]} 30. Ke2 {[%clk 0:00:12]}
30... Nd7 {[%clk 0:00:12.6]} 31. Rh7 {[%clk 0:00:10.1]} 31... Nxb6 {[%clk
0:00:11.8]} 32. axb6 {[%clk 0:00:09.8]} 32... Qxc4+ {[%clk 0:00:12.1]} 33. Qd3
{[%clk 0:00:10.4]} 33... Rc8 {[%clk 0:00:09.1]} 34. e5 {[%clk 0:00:03.6]} 34...
Qa2+ {[%clk 0:00:09.2]} 35. Kf3 {[%clk 0:00:03.8]} 35... dxe5 {[%clk 0:00:06.8]}
36. fxe5 {[%clk 0:00:03.9]} 36... Qb2 {[%clk 0:00:07.3]} 37. Ne4 {[%clk
0:00:02.9]} 37... Bxe5 {[%clk 0:00:06.2]} 38. Qe3 {[%clk 0:00:02.3]} 38... Bxc3
{[%clk 0:00:05.5]} 39. Qh6+ {[%clk 0:00:02.7]} 39... Ke8 {[%clk 0:00:06.1]} 40.
Rh8+ {[%clk 0:00:03.2]} 40... Kd7 {[%clk 0:00:06.8]} 41. Rxc8 {[%clk 0:00:03.3]}
41... Kxc8 {[%clk 0:00:07.5]} 42. Qf8+ {[%clk 0:00:03.6]} 42... Kd7 {[%clk
0:00:08.1]} 43. Qxf7 {[%clk 0:00:04.1]} 43... Be5 {[%clk 0:00:08.2]} 44. Qe6+
{[%clk 0:00:04.5]} 44... Kd8 {[%clk 0:00:08.7]} 45. Qg8+ {[%clk 0:00:04.9]}
45... Kd7 {[%clk 0:00:08.7]} 46. Qe6+ {[%clk 0:00:03.8]} 46... Kd8 {[%clk
0:00:09.2]} 47. Qg8+ {[%clk 0:00:04]} 47... Kd7 {[%clk 0:00:09.4]} 48. Nc5+
{[%clk 0:00:04.7]} 48... Kd6 {[%clk 0:00:09.3]} 49. Nxb7+ {[%clk 0:00:05.2]}
49... Kd7 {[%clk 0:00:09.8]} 50. Qe6+ {[%clk 0:00:05.7]} 50... Ke8 {[%clk
0:00:09.7]} 51. Qxg6+ {[%clk 0:00:06.4]} 51... Kf8 {[%clk 0:00:08.7]} 52. Qf5+
{[%clk 0:00:06.9]} 52... Bf6 {[%clk 0:00:08.6]} 53. Nd8 {[%clk 0:00:06.8]} 53...
Qxb6 {[%clk 0:00:07.4]} 54. Ne6+ {[%clk 0:00:06.3]} 54... Ke8 {[%clk 0:00:08]}
55. Qg6+ {[%clk 0:00:05.7]} 55... Kd7 {[%clk 0:00:08.6]} 56. Qf5 {[%clk
0:00:05.7]} 56... Qb3+ {[%clk 0:00:08.2]} 57. Ke2 {[%clk 0:00:05.4]} 57... Qc4+
{[%clk 0:00:07.1]} 58. Kf3 {[%clk 0:00:04]} 58... Qc3+ {[%clk 0:00:06.8]} 59.
Kg2 {[%clk 0:00:04.1]} 59... Qd2+ {[%clk 0:00:06.4]} 60. Kg3 {[%clk 0:00:04.3]}
60... Qe3+ {[%clk 0:00:05.9]} 61. Kg2 {[%clk 0:00:05]} 61... Qe2+ {[%clk
0:00:06.2]} 62. Kh3 {[%clk 0:00:04.9]} 62... Qe3+ {[%clk 0:00:05.8]} 63. Kg2
{[%clk 0:00:05.3]} 63... Qe2+ {[%clk 0:00:06.2]} 64. Kh3 {[%clk 0:00:05.4]}
64... Qe3+ {[%clk 0:00:06.4]} 65. Kg2 {[%clk 0:00:05.8]} 1/2-1/2

[Event "*** Titled Tuesday Blitz"]
[Site "Chess.com"]
[Date "2021.02.16"]
[Round "7"]
[White "Gusarov91"]
[Black "Ermito2020"]
[Result "1/2-1/2"]
[WhiteElo "2435"]
[BlackElo "2587"]
[TimeControl "180+1"]
[EndTime "11:19:58 PST"]
[Termination "Game drawn - insufficient material"]

1. d4 {[%clk 0:03:00.9]} 1... Nf6 {[%clk 0:02:58.7]} 2. Nf3 {[%clk 0:03:01.3]}
2... g6 {[%clk 0:02:57.5]} 3. c4 {[%clk 0:03:01.7]} 3... Bg7 {[%clk 0:02:57.8]}
4. g3 {[%clk 0:03:02.4]} 4... O-O {[%clk 0:02:58.1]} 5. Bg2 {[%clk 0:03:03]}
5... d6 {[%clk 0:02:58.7]} 6. O-O {[%clk 0:03:03.2]} 6... Nbd7 {[%clk
0:02:59.2]} 7. b3 {[%clk 0:03:03.8]} 7... e5 {[%clk 0:02:59.8]} 8. dxe5 {[%clk
0:03:04.1]} 8... Nxe5 {[%clk 0:02:55.5]} 9. Nxe5 {[%clk 0:03:03.3]} 9... dxe5
{[%clk 0:02:55.7]} 10. Qxd8 {[%clk 0:02:59.8]} 10... Rxd8 {[%clk 0:02:56.6]} 11.
Bb2 {[%clk 0:03:00.4]} 11... Ne8 {[%clk 0:02:33.8]} 12. Nc3 {[%clk 0:02:56.4]}
12... c6 {[%clk 0:02:33.3]} 13. Rad1 {[%clk 0:02:52.7]} 13... Bf5 {[%clk
0:02:31.8]} 14. Na4 {[%clk 0:02:49.2]} 14... Bc2 {[%clk 0:02:10.6]} 15. Rc1
{[%clk 0:02:49]} 15... Bf5 {[%clk 0:02:02]} 16. Rfd1 {[%clk 0:02:34.6]} 16...
Kf8 {[%clk 0:01:59.2]} 17. Nc5 {[%clk 0:02:29.3]} 17... Nd6 {[%clk 0:01:56.5]}
18. Ba3 {[%clk 0:02:13.7]} 18... Kg8 {[%clk 0:01:55.8]} 19. h3 {[%clk
0:01:57.2]} 19... h5 {[%clk 0:01:54.6]} 20. e4 {[%clk 0:01:48.3]} 20... Bc8
{[%clk 0:01:44]} 21. Na6 {[%clk 0:01:37]} 21... bxa6 {[%clk 0:01:35]} 22. Bxd6
{[%clk 0:01:36.4]} 22... Be6 {[%clk 0:01:26.7]} 23. Bc5 {[%clk 0:01:36.2]} 23...
Bf8 {[%clk 0:01:22.9]} 24. Rxd8 {[%clk 0:01:23]} 24... Rxd8 {[%clk 0:01:22]} 25.
Bxa7 {[%clk 0:01:23.3]} 25... Rd2 {[%clk 0:01:21.2]} 26. a4 {[%clk 0:01:18.7]}
26... Rb2 {[%clk 0:01:14.9]} 27. Rc3 {[%clk 0:01:14.5]} 27... Bb4 {[%clk
0:01:14.2]} 28. Rd3 {[%clk 0:01:14.5]} 28... c5 {[%clk 0:01:08.5]} 29. Bb8
{[%clk 0:01:14.5]} 29... f6 {[%clk 0:01:06.8]} 30. f4 {[%clk 0:01:13.2]} 30...
exf4 {[%clk 0:00:47]} 31. gxf4 {[%clk 0:01:14.1]} 31... Be1 {[%clk 0:00:43.7]}
32. Rf3 {[%clk 0:00:50]} 32... Bxc4 {[%clk 0:00:35.9]} 33. bxc4 {[%clk
0:00:44.5]} 33... Rxb8 {[%clk 0:00:36.8]} 34. e5 {[%clk 0:00:44.9]} 34... Kf7
{[%clk 0:00:35.2]} 35. e6+ {[%clk 0:00:40.7]} 35... Ke7 {[%clk 0:00:34.1]} 36.
Rd3 {[%clk 0:00:40.2]} 36... Rb1 {[%clk 0:00:31.1]} 37. Bd5 {[%clk 0:00:31.4]}
37... Bg3+ {[%clk 0:00:28.7]} 38. Kg2 {[%clk 0:00:31.7]} 38... Bxf4 {[%clk
0:00:29.6]} 39. Rf3 {[%clk 0:00:30.5]} 39... Rb2+ {[%clk 0:00:27.8]} 40. Rf2
{[%clk 0:00:30.8]} 40... Rxf2+ {[%clk 0:00:27.3]} 41. Kxf2 {[%clk 0:00:31.7]}
41... f5 {[%clk 0:00:27.2]} 42. Kf3 {[%clk 0:00:32.2]} 42... g5 {[%clk
0:00:26.3]} 43. h4 {[%clk 0:00:31.1]} 43... Kf6 {[%clk 0:00:24.9]} 44. hxg5+
{[%clk 0:00:30.5]} 44... Bxg5 {[%clk 0:00:24.8]} 45. Kg3 {[%clk 0:00:30.2]}
45... Ke7 {[%clk 0:00:22.2]} 46. Kf3 {[%clk 0:00:30.4]} 46... Kd6 {[%clk
0:00:21.6]} 47. Kg3 {[%clk 0:00:25.9]} 47... Ke5 {[%clk 0:00:20.7]} 48. a5
{[%clk 0:00:20.1]} 48... h4+ {[%clk 0:00:21.4]} 49. Kh3 {[%clk 0:00:20.2]} 49...
Kd4 {[%clk 0:00:16.6]} 50. Bb7 {[%clk 0:00:19.3]} 50... Kxc4 {[%clk 0:00:15.8]}
51. Bxa6+ {[%clk 0:00:19.3]} 51... Kb4 {[%clk 0:00:15.9]} 52. Bd3 {[%clk
0:00:19.5]} 52... Kxa5 {[%clk 0:00:14.9]} 53. Bxf5 {[%clk 0:00:19.4]} 53... c4
{[%clk 0:00:15.4]} 54. Kg2 {[%clk 0:00:18.1]} 54... Kb4 {[%clk 0:00:15.3]} 55.
Kf1 {[%clk 0:00:18.7]} 55... Kb3 {[%clk 0:00:14.7]} 56. Ke2 {[%clk 0:00:19.2]}
56... c3 {[%clk 0:00:14.4]} 57. Kd1 {[%clk 0:00:18.9]} 57... Kb2 {[%clk
0:00:13.8]} 58. Ke2 {[%clk 0:00:14.7]} 58... h3 {[%clk 0:00:12.1]} 59. Kf3
{[%clk 0:00:14.1]} 59... c2 {[%clk 0:00:10.6]} 60. Bxc2 {[%clk 0:00:13.8]} 60...
Kxc2 {[%clk 0:00:10.9]} 61. Kg3 {[%clk 0:00:14.2]} 61... Kd3 {[%clk 0:00:09.2]}
62. Kxh3 {[%clk 0:00:14.6]} 62... Be7 {[%clk 0:00:08.2]} 63. Kg4 {[%clk
0:00:15.5]} 63... Ke4 {[%clk 0:00:09.1]} 64. Kh5 {[%clk 0:00:15.5]} 64... Ke5
{[%clk 0:00:10]} 65. Kg6 {[%clk 0:00:16.4]} 65... Kxe6 {[%clk 0:00:09.8]}
1/2-1/2

[Event "*** Titled Tuesday Blitz"]
[Site "Chess.com"]
[Date "2021.02.16"]
[Round "7"]
[White "Sokoloco"]
[Black "kamilianin235"]
[Result "1-0"]
[WhiteElo "2458"]
[BlackElo "2188"]
[TimeControl "180+1"]
[EndTime "11:20:01 PST"]
[Termination "Sokoloco won by checkmate"]

1. b3 {[%clk 0:03:00.9]} 1... Nf6 {[%clk 0:02:56.6]} 2. Bb2 {[%clk 0:03:01.4]}
2... g6 {[%clk 0:02:55.9]} 3. Bxf6 {[%clk 0:03:00.3]} 3... exf6 {[%clk
0:02:54.7]} 4. c4 {[%clk 0:03:00.9]} 4... Bg7 {[%clk 0:02:54.6]} 5. Nc3 {[%clk
0:03:01.5]} 5... O-O {[%clk 0:02:54.3]} 6. Nf3 {[%clk 0:02:49.2]} 6... d6 {[%clk
0:02:52.3]} 7. d4 {[%clk 0:02:42.1]} 7... Nd7 {[%clk 0:02:49.7]} 8. e3 {[%clk
0:02:41.3]} 8... c6 {[%clk 0:02:42.6]} 9. Be2 {[%clk 0:02:38.5]} 9... Nb6 {[%clk
0:02:41.3]} 10. O-O {[%clk 0:02:25.6]} 10... d5 {[%clk 0:02:38.9]} 11. c5 {[%clk
0:02:24.7]} 11... Nd7 {[%clk 0:02:37.5]} 12. b4 {[%clk 0:02:24.9]} 12... f5
{[%clk 0:02:34.6]} 13. b5 {[%clk 0:02:22.3]} 13... Nf6 {[%clk 0:02:33.2]} 14. a4
{[%clk 0:02:19.8]} 14... Ne4 {[%clk 0:02:31.8]} 15. Qc2 {[%clk 0:02:07.9]} 15...
Qc7 {[%clk 0:02:28.5]} 16. a5 {[%clk 0:02:03.7]} 16... Bh6 {[%clk 0:02:08.9]}
17. g3 {[%clk 0:01:53.6]} 17... Re8 {[%clk 0:01:59.9]} 18. Nxe4 {[%clk
0:01:35.9]} 18... fxe4 {[%clk 0:01:55.3]} 19. Ne1 {[%clk 0:01:32.3]} 19... Bh3
{[%clk 0:01:51.1]} 20. Ng2 {[%clk 0:01:32.7]} 20... Qd7 {[%clk 0:01:49.5]} 21.
Rfb1 {[%clk 0:01:08.9]} 21... Rab8 {[%clk 0:01:39.8]} 22. a6 {[%clk 0:01:04.8]}
22... bxa6 {[%clk 0:01:20.8]} 23. bxc6 {[%clk 0:01:04.7]} 23... Qxc6 {[%clk
0:01:19.4]} 24. Rxa6 {[%clk 0:01:03.7]} 24... Rxb1+ {[%clk 0:01:17.3]} 25. Qxb1
{[%clk 0:01:03.2]} 25... Qc7 {[%clk 0:01:17.4]} 26. Qa2 {[%clk 0:00:52.8]} 26...
Rb8 {[%clk 0:01:08.7]} 27. Rxa7 {[%clk 0:00:42]} 27... Qc6 {[%clk 0:01:05.3]}
28. Ra6 {[%clk 0:00:33.2]} 28... Qc7 {[%clk 0:00:56.6]} 29. Qxd5 {[%clk
0:00:23]} 29... Rb1+ {[%clk 0:00:52.7]} 30. Bf1 {[%clk 0:00:23.5]} 30... Bf5
{[%clk 0:00:46.6]} 31. Qa2 {[%clk 0:00:14.1]} 31... Qb7 {[%clk 0:00:23.7]} 32.
Ra7 {[%clk 0:00:06.3]} 32... Be6 {[%clk 0:00:15.3]} 33. Rxb7 {[%clk 0:00:04.2]}
33... Bxa2 {[%clk 0:00:14.8]} 34. Rxb1 {[%clk 0:00:04.9]} 34... Bxb1 {[%clk
0:00:14.7]} 35. Nf4 {[%clk 0:00:05.4]} 35... Kf8 {[%clk 0:00:12]} 36. Bc4 {[%clk
0:00:05.6]} 36... Ke7 {[%clk 0:00:11.6]} 37. Kf1 {[%clk 0:00:06]} 37... Bc2
{[%clk 0:00:10.2]} 38. Ke2 {[%clk 0:00:06.2]} 38... Ba4 {[%clk 0:00:10.5]} 39.
Kd2 {[%clk 0:00:06]} 39... Bc6 {[%clk 0:00:09.8]} 40. Kc3 {[%clk 0:00:06.1]}
40... f5 {[%clk 0:00:08.5]} 41. Ne2 {[%clk 0:00:04.8]} 41... Kd7 {[%clk
0:00:06.1]} 42. Kb4 {[%clk 0:00:05]} 42... Bf8 {[%clk 0:00:04.4]} 43. Bb5 {[%clk
0:00:04.4]} 43... Kc7 {[%clk 0:00:04.4]} 44. Bxc6 {[%clk 0:00:04.8]} 44... Kxc6
{[%clk 0:00:05.3]} 45. Kc4 {[%clk 0:00:05.6]} 45... Bg7 {[%clk 0:00:05.4]} 46.
d5+ {[%clk 0:00:05.9]} 46... Kd7 {[%clk 0:00:05.8]} 47. Nd4 {[%clk 0:00:06.5]}
47... Bf6 {[%clk 0:00:04.4]} 48. Nb5 {[%clk 0:00:06.7]} 48... h5 {[%clk
0:00:03.3]} 49. c6+ {[%clk 0:00:07]} 49... Kc8 {[%clk 0:00:03.1]} 50. d6 {[%clk
0:00:07.3]} 50... Be5 {[%clk 0:00:03.2]} 51. Kd5 {[%clk 0:00:07.7]} 51... Bf6
{[%clk 0:00:03.1]} 52. Ke6 {[%clk 0:00:06.8]} 52... Bg5 {[%clk 0:00:03.1]} 53.
c7 {[%clk 0:00:07.1]} 53... Kb7 {[%clk 0:00:02.4]} 54. d7 {[%clk 0:00:06.9]}
54... Kc6 {[%clk 0:00:01.8]} 55. d8=Q {[%clk 0:00:06.9]} 55... Bxd8 {[%clk
0:00:01]} 56. cxd8=Q {[%clk 0:00:06.4]} 56... Kxb5 {[%clk 0:00:01.9]} 57. Qf6
{[%clk 0:00:06.9]} 57... Kb4 {[%clk 0:00:02.8]} 58. Qxg6 {[%clk 0:00:07.6]}
58... Ka3 {[%clk 0:00:03.3]} 59. Qxf5 {[%clk 0:00:08.3]} 59... Kb2 {[%clk
0:00:04.1]} 60. Qxe4 {[%clk 0:00:09]} 60... Kc1 {[%clk 0:00:05]} 61. Qh4 {[%clk
0:00:09.7]} 61... Kd2 {[%clk 0:00:05.2]} 62. Qxh5 {[%clk 0:00:10.4]} 62... Ke1
{[%clk 0:00:06.1]} 63. Qg4 {[%clk 0:00:11.1]} 63... Kxf2 {[%clk 0:00:06.4]} 64.
h4 {[%clk 0:00:12]} 64... Kg1 {[%clk 0:00:07.3]} 65. h5 {[%clk 0:00:12.9]} 65...
Kh2 {[%clk 0:00:08.2]} 66. h6 {[%clk 0:00:13.7]} 66... Kg1 {[%clk 0:00:09.1]}
67. h7 {[%clk 0:00:14.4]} 67... Kf2 {[%clk 0:00:10]} 68. h8=Q {[%clk 0:00:14.3]}
68... Kxe3 {[%clk 0:00:10.9]} 69. Qe5+ {[%clk 0:00:13.7]} 69... Kd2 {[%clk
0:00:10.7]} 70. Qgd4+ {[%clk 0:00:13.1]} 70... Kc1 {[%clk 0:00:11.6]} 71. Qec5+
{[%clk 0:00:13.8]} 71... Kb1 {[%clk 0:00:11.9]} 72. Qdb4+ {[%clk 0:00:14.4]}
72... Ka2 {[%clk 0:00:12.8]} 73. Qca5# {[%clk 0:00:15.3]} 1-0

[Event "*** Titled Tuesday Blitz"]
[Site "Chess.com"]
[Date "2021.02.16"]
[Round "7"]
[White "temiksmozg"]
[Black "TigrVShlyape"]
[Result "1-0"]
[WhiteElo "2632"]
[BlackElo "2888"]
[TimeControl "180+1"]
[EndTime "11:20:03 PST"]
[Termination "temiksmozg won on time"]

1. d4 {[%clk 0:03:00.9]} 1... Nf6 {[%clk 0:02:57.8]} 2. c4 {[%clk 0:03:01.2]}
2... g6 {[%clk 0:02:57.4]} 3. Nc3 {[%clk 0:03:00.7]} 3... Bg7 {[%clk 0:02:57.5]}
4. e4 {[%clk 0:03:00.4]} 4... d6 {[%clk 0:02:57.7]} 5. Nf3 {[%clk 0:02:57.7]}
5... O-O {[%clk 0:02:56.7]} 6. Be2 {[%clk 0:02:57.2]} 6... e5 {[%clk 0:02:56.8]}
7. O-O {[%clk 0:02:57.5]} 7... Bg4 {[%clk 0:02:50.5]} 8. d5 {[%clk 0:02:47.9]}
8... Bxf3 {[%clk 0:02:48.7]} 9. Bxf3 {[%clk 0:02:47.2]} 9... Nbd7 {[%clk
0:02:49]} 10. g3 {[%clk 0:02:30.8]} 10... Kh8 {[%clk 0:02:45.6]} 11. h4 {[%clk
0:02:24.1]} 11... Ng8 {[%clk 0:02:45.1]} 12. h5 {[%clk 0:02:23.5]} 12... Bh6
{[%clk 0:02:44.6]} 13. Kg2 {[%clk 0:02:22.3]} 13... Kg7 {[%clk 0:02:36.9]} 14.
Rh1 {[%clk 0:02:20.8]} 14... f5 {[%clk 0:02:24]} 15. hxg6 {[%clk 0:02:16.2]}
15... hxg6 {[%clk 0:02:23.5]} 16. exf5 {[%clk 0:01:58.6]} 16... gxf5 {[%clk
0:02:22.2]} 17. Rh5 {[%clk 0:01:44.3]} 17... Qf6 {[%clk 0:02:09.1]} 18. Qc2
{[%clk 0:01:15.1]} 18... Bxc1 {[%clk 0:01:24.1]} 19. Rxc1 {[%clk 0:01:13.6]}
19... Ne7 {[%clk 0:01:20.4]} 20. Rch1 {[%clk 0:01:09.8]} 20... Rh8 {[%clk
0:01:19.5]} 21. Nb5 {[%clk 0:01:04.7]} 21... Rxh5 {[%clk 0:01:13.1]} 22. Bxh5
{[%clk 0:01:01.3]} 22... Nf8 {[%clk 0:01:07.9]} 23. Nxc7 {[%clk 0:00:58.1]}
23... Rc8 {[%clk 0:01:08.3]} 24. Ne8+ {[%clk 0:00:58]} 24... Rxe8 {[%clk
0:01:05]} 25. Bxe8 {[%clk 0:00:58.9]} 25... b6 {[%clk 0:00:43.9]} 26. Qe2 {[%clk
0:00:56.5]} 26... Ng8 {[%clk 0:00:38.3]} 27. Qh5 {[%clk 0:00:55]} 27... Nh6
{[%clk 0:00:38.5]} 28. b4 {[%clk 0:00:42.9]} 28... Nh7 {[%clk 0:00:37]} 29. Ba4
{[%clk 0:00:17.9]} 29... e4 {[%clk 0:00:34.7]} 30. Qe8 {[%clk 0:00:16.1]} 30...
Ng5 {[%clk 0:00:32.7]} 31. Qd7+ {[%clk 0:00:14.5]} 31... Ngf7 {[%clk 0:00:31.3]}
32. Qe6 {[%clk 0:00:13.3]} 32... Qd4 {[%clk 0:00:28.1]} 33. Be8 {[%clk
0:00:12.1]} 33... Qf6 {[%clk 0:00:14.2]} 34. Bxf7 {[%clk 0:00:10.4]} 34... Nxf7
{[%clk 0:00:13.9]} 35. Qxf6+ {[%clk 0:00:09.9]} 35... Kxf6 {[%clk 0:00:14.2]}
36. Rh7 {[%clk 0:00:10.6]} 36... a5 {[%clk 0:00:13.6]} 37. c5 {[%clk 0:00:08.7]}
37... dxc5 {[%clk 0:00:12.8]} 38. bxc5 {[%clk 0:00:08.5]} 38... bxc5 {[%clk
0:00:13.2]} 39. Kf1 {[%clk 0:00:09]} 39... Nd6 {[%clk 0:00:13.3]} 40. Ra7 {[%clk
0:00:09.3]} 40... Ke5 {[%clk 0:00:13.8]} 41. Rxa5 {[%clk 0:00:09.5]} 41... Kxd5
{[%clk 0:00:14.7]} 42. Ke2 {[%clk 0:00:09.6]} 42... Kc4 {[%clk 0:00:15]} 43. Ra6
{[%clk 0:00:09.6]} 43... Nb5 {[%clk 0:00:15]} 44. Rf6 {[%clk 0:00:09.3]} 44...
Nd4+ {[%clk 0:00:15.1]} 45. Ke3 {[%clk 0:00:09.4]} 45... Kb4 {[%clk 0:00:15.5]}
46. Ra6 {[%clk 0:00:08.6]} 46... Kb5 {[%clk 0:00:14.9]} 47. Ra8 {[%clk
0:00:08.9]} 47... Nc2+ {[%clk 0:00:14.9]} 48. Kf4 {[%clk 0:00:08.4]} 48... Nd4
{[%clk 0:00:15.5]} 49. Ke5 {[%clk 0:00:08]} 49... Kc4 {[%clk 0:00:15.3]} 50. Rc8
{[%clk 0:00:07.3]} 50... Kb4 {[%clk 0:00:15.5]} 51. Kd5 {[%clk 0:00:07.8]} 51...
Ne2 {[%clk 0:00:12.5]} 52. Rxc5 {[%clk 0:00:06.9]} 52... e3 {[%clk 0:00:12.5]}
53. fxe3 {[%clk 0:00:06.1]} 53... Nxg3 {[%clk 0:00:13]} 54. Rc4+ {[%clk
0:00:06.6]} 54... Ka3 {[%clk 0:00:13.4]} 55. Rf4 {[%clk 0:00:06.9]} 55... Kxa2
{[%clk 0:00:13.5]} 56. Rf3 {[%clk 0:00:07.4]} 56... Ne2 {[%clk 0:00:12.5]} 57.
Rf2 {[%clk 0:00:07.2]} 57... Kb3 {[%clk 0:00:12.5]} 58. Rxe2 {[%clk 0:00:08.1]}
58... Kc3 {[%clk 0:00:13.1]} 59. Ke5 {[%clk 0:00:08.4]} 59... Kd3 {[%clk
0:00:13.6]} 60. Re1 {[%clk 0:00:08.6]} 60... Kd2 {[%clk 0:00:13.9]} 61. Rf1
{[%clk 0:00:09]} 61... Kxe3 {[%clk 0:00:14.4]} 62. Rxf5 {[%clk 0:00:09.9]} 62...
Kd3 {[%clk 0:00:14.6]} 63. Rf4 {[%clk 0:00:10.8]} 63... Ke3 {[%clk 0:00:14.4]}
64. Rf5 {[%clk 0:00:11.1]} 64... Kd3 {[%clk 0:00:14.5]} 65. Rf3+ {[%clk
0:00:11.3]} 65... Kc4 {[%clk 0:00:14.9]} 66. Re3 {[%clk 0:00:11.6]} 66... Kb4
{[%clk 0:00:14.5]} 67. Kd5 {[%clk 0:00:11.4]} 1-0

[Event "*** Titled Tuesday Blitz"]
[Site "Chess.com"]
[Date "2021.02.16"]
[Round "7"]
[White "Ze-Pequeno"]
[Black "MariaFominykh"]
[Result "0-1"]
[WhiteElo "2271"]
[BlackElo "2257"]
[TimeControl "180+1"]
[EndTime "11:20:03 PST"]
[Termination "MariaFominykh won on time"]

1. e4 {[%clk 0:03:00.9]} 1... d6 {[%clk 0:02:59.1]} 2. d4 {[%clk 0:03:00.7]}
2... Nf6 {[%clk 0:02:58.3]} 3. Nc3 {[%clk 0:03:00.3]} 3... e5 {[%clk 0:02:55.1]}
4. Nf3 {[%clk 0:03:00.1]} 4... Nbd7 {[%clk 0:02:53.6]} 5. Bc4 {[%clk 0:02:58.5]}
5... Be7 {[%clk 0:02:52.4]} 6. O-O {[%clk 0:02:56.3]} 6... O-O {[%clk
0:02:51.6]} 7. Re1 {[%clk 0:02:55.7]} 7... c6 {[%clk 0:02:48.4]} 8. a4 {[%clk
0:02:55.3]} 8... a5 {[%clk 0:02:42.9]} 9. h3 {[%clk 0:02:54.5]} 9... Nb6 {[%clk
0:02:39.2]} 10. Bf1 {[%clk 0:02:51]} 10... Nfd7 {[%clk 0:02:36.8]} 11. b3 {[%clk
0:02:48.4]} 11... exd4 {[%clk 0:02:14.6]} 12. Nxd4 {[%clk 0:02:46.4]} 12... Bf6
{[%clk 0:02:07.9]} 13. Be3 {[%clk 0:02:41.6]} 13... Re8 {[%clk 0:01:57.5]} 14.
g3 {[%clk 0:02:30.4]} 14... Nc5 {[%clk 0:01:45.4]} 15. Bg2 {[%clk 0:02:28.4]}
15... Bd7 {[%clk 0:01:29.6]} 16. Qf3 {[%clk 0:02:02.6]} 16... Qe7 {[%clk
0:01:05.8]} 17. Rad1 {[%clk 0:01:50.1]} 17... Qf8 {[%clk 0:00:53.9]} 18. Bf4
{[%clk 0:01:37.3]} 18... Rad8 {[%clk 0:00:50]} 19. g4 {[%clk 0:01:28.6]} 19...
Be5 {[%clk 0:00:49.2]} 20. Be3 {[%clk 0:01:25.2]} 20... Ne6 {[%clk 0:00:42.3]}
21. Nce2 {[%clk 0:01:23.1]} 21... Nc8 {[%clk 0:00:38.3]} 22. c4 {[%clk
0:01:19.3]} 22... Nc5 {[%clk 0:00:37.4]} 23. Bf4 {[%clk 0:01:16]} 23... g6
{[%clk 0:00:34.8]} 24. Qg3 {[%clk 0:01:07.5]} 24... Qg7 {[%clk 0:00:32]} 25. Rd2
{[%clk 0:01:01.5]} 25... Nb6 {[%clk 0:00:22.3]} 26. Red1 {[%clk 0:01:01.2]}
26... Bc8 {[%clk 0:00:20.5]} 27. Qe3 {[%clk 0:01:00.5]} 27... Nbd7 {[%clk
0:00:17.8]} 28. Bh6 {[%clk 0:00:59.6]} 28... Qf6 {[%clk 0:00:16.7]} 29. f4
{[%clk 0:00:55.8]} 29... Bxd4 {[%clk 0:00:15.8]} 30. Nxd4 {[%clk 0:00:37.5]}
30... Ne6 {[%clk 0:00:15.2]} 31. Nxe6 {[%clk 0:00:37.4]} 31... Qxe6 {[%clk
0:00:15.1]} 32. Bg5 {[%clk 0:00:36.9]} 32... f6 {[%clk 0:00:14.7]} 33. Bh4
{[%clk 0:00:37.4]} 33... Nc5 {[%clk 0:00:13.9]} 34. e5 {[%clk 0:00:34.7]} 34...
g5 {[%clk 0:00:12.6]} 35. fxg5 {[%clk 0:00:30.1]} 35... Qxe5 {[%clk 0:00:12.7]}
36. Qxe5 {[%clk 0:00:25.9]} 36... fxe5 {[%clk 0:00:10.1]} 37. g6 {[%clk
0:00:24.7]} 37... Rd7 {[%clk 0:00:09.4]} 38. Rxd6 {[%clk 0:00:21.9]} 38... Rxd6
{[%clk 0:00:08.1]} 39. Rxd6 {[%clk 0:00:22.8]} 39... Nxb3 {[%clk 0:00:07.9]} 40.
gxh7+ {[%clk 0:00:22.1]} 40... Kxh7 {[%clk 0:00:08.7]} 41. Be4+ {[%clk 0:00:22]}
41... Kg7 {[%clk 0:00:07.6]} 42. Rg6+ {[%clk 0:00:20.1]} 42... Kf7 {[%clk
0:00:07.4]} 43. Rh6 {[%clk 0:00:20.3]} 43... Rg8 {[%clk 0:00:05.5]} 44. Bg3
{[%clk 0:00:19.2]} 44... Nd4 {[%clk 0:00:04]} 45. Bxe5 {[%clk 0:00:17.7]} 45...
Ne6 {[%clk 0:00:03.8]} 46. Rf6+ {[%clk 0:00:16.9]} 46... Ke7 {[%clk 0:00:03.5]}
47. Bf5 {[%clk 0:00:17.4]} 47... Ng5 {[%clk 0:00:02.4]} 48. Bxc8 {[%clk
0:00:14]} 48... Rxc8 {[%clk 0:00:03.3]} 49. Rh6 {[%clk 0:00:14]} 49... Nf3+
{[%clk 0:00:02.9]} 50. Kf2 {[%clk 0:00:13.8]} 50... Nxe5 {[%clk 0:00:03.8]} 51.
c5 {[%clk 0:00:13.8]} 51... Nd3+ {[%clk 0:00:03.7]} 52. Ke3 {[%clk 0:00:14.3]}
52... Nxc5 {[%clk 0:00:04.6]} 53. Kd4 {[%clk 0:00:15.2]} 53... Nxa4 {[%clk
0:00:03.7]} 54. Rh7+ {[%clk 0:00:16.1]} 54... Kd6 {[%clk 0:00:03.3]} 55. Rxb7
{[%clk 0:00:17]} 55... Rh8 {[%clk 0:00:02.8]} 56. Ra7 {[%clk 0:00:16]} 56...
Rxh3 {[%clk 0:00:02.8]} 57. Rxa5 {[%clk 0:00:16.6]} 57... Nb6 {[%clk 0:00:02.8]}
58. Ra6 {[%clk 0:00:16]} 58... Nd7 {[%clk 0:00:03.3]} 59. g5 {[%clk 0:00:15.5]}
59... Rg3 {[%clk 0:00:03.8]} 60. Rxc6+ {[%clk 0:00:14.6]} 60... Kxc6 {[%clk
0:00:03.5]} 61. g6 {[%clk 0:00:12]} 61... Rg5 {[%clk 0:00:04.4]} 62. g7 {[%clk
0:00:12.9]} 62... Rxg7 {[%clk 0:00:04.4]} 63. Ke4 {[%clk 0:00:13.3]} 63... Rg5
{[%clk 0:00:05]} 64. Kf4 {[%clk 0:00:13.1]} 64... Re5 {[%clk 0:00:05.9]} 0-1